bitfinex-derivatives/quotes_BTCF0:USTF0_20260127
["timestamp","ask_amount","ask_price","bid_price","bid_amount"]
[1769535696635,0.00266346,87506.0,87487.0,0.00997416]
[1769535697033,0.011441,87505.0,87487.0,0.00997416]
[1769535697241,0.00258838,87504.0,87487.0,0.00997416]
[1769535697549,7.508e-05,87506.0,87487.0,0.00997416]
[1769535697932,7.508e-05,87506.0,87484.0,0.40428]
[1769535697933,7.508e-05,87506.0,87489.0,0.02141716]
[1769535698146,0.011439,87515.0,87490.0,0.00997416]
[1769535698346,0.00258838,87514.0,87490.0,0.00997416]
[1769535698738,0.01144,87512.0,87491.0,0.011442]
[1769535698934,0.00258838,87511.0,87496.0,0.00997416]
[1769535699138,0.00258838,87511.0,87497.0,0.40432]
[1769535700748,0.011,87527.0,87507.0,0.00997416]
[1769535700952,0.00258838,87522.0,87509.0,1.6e-07]
[1769535701151,0.00258838,87522.0,87472.0,0.09054996]
[1769535701152,0.011439,87520.0,87472.0,0.09054996]
[1769535701355,0.00993696,87509.0,87473.0,0.40432]
[1769535701654,0.00258838,87508.0,87479.0,0.011444]
[1769535701850,0.00258838,87508.0,87474.0,0.40432]
[1769535701851,0.00258838,87508.0,87488.0,0.011443]
[1769535702151,0.01252534,87508.0,87489.0,0.40432]
[1769535702360,0.00993696,87507.0,87490.0,0.40432]
[1769535702548,0.00258838,87506.0,87490.0,0.415763]
[1769535702753,0.00258838,87506.0,87490.0,0.40432]
[1769535702944,0.011441,87505.0,87491.0,0.01000072]
[1769535703146,0.00258838,87504.0,87492.0,0.10296]
[1769535703347,0.00258838,87504.0,87492.0,0.11296072]
[1769535703752,0.00993696,87519.0,87499.0,0.011441]
[1769535703956,0.00993696,87519.0,87493.0,0.00997416]
[1769535703957,0.00258838,87517.0,87493.0,0.00997416]
[1769535704254,0.01144,87514.0,87493.0,0.00997416]
[1769535704459,0.00258838,87513.0,87493.0,0.00997416]
[1769535704860,0.00258838,87513.0,87494.0,0.011442]
[1769535705061,0.011438,87524.0,87502.0,0.011441]
[1769535705260,0.00993696,87528.0,87503.0,0.10554838]
[1769535705463,0.0079952,87553.0,87510.0,0.01144]
[1769535705464,0.11427918,87526.0,87510.0,0.01144]
[1769535705758,0.01166256,87525.0,87504.0,0.01000072]
[1769535705951,0.01166256,87525.0,87501.0,0.10296]
[1769535705952,0.00993696,87519.0,87501.0,0.10296]
[1769535706257,0.01144,87513.0,87494.0,0.30136]
[1769535706454,0.01144,87509.0,87495.0,0.01086392]
[1769535706658,0.002588,87508.0,87495.0,0.01086392]
[1769535706862,0.10296,87521.0,87495.0,0.01086392]
[1769535707061,0.002588,87514.0,87495.0,0.02744419]
[1769535707362,0.002588,87513.0,87500.0,0.01658027]
[1769535707550,0.002588,87513.0,87501.0,0.0008632]
[1769535707747,0.01144,87510.0,87495.0,0.01000072]
[1769535707947,0.002588,87509.0,87496.0,0.4051832]
[1769535708156,0.002588,87509.0,87497.0,0.30136]
[1769535708459,0.002588,87509.0,87497.0,0.40432]
[1769535708657,0.002588,87509.0,87497.0,0.4051832]
[1769535708959,0.01144,87507.0,87497.0,0.4051832]
[1769535709157,0.002588,87506.0,87498.0,0.10296]
[1769535709352,0.01144,87513.0,87499.0,0.0008632]
[1769535709546,0.01144,87511.0,87499.0,0.0008632]
[1769535709751,0.01144,87507.0,87499.0,0.0008632]
[1769535709957,0.002588,87506.0,87499.0,0.0008632]
[1769535710354,0.014028,87506.0,87498.0,0.11296072]
[1769535710964,0.002588,87506.0,87498.0,0.11296072]
[1769535711161,0.10296,87521.0,87499.0,0.01753788]
[1769535711367,0.105548,87521.0,87499.0,0.01753788]
[1769535711565,0.011439,87517.0,87499.0,0.01753788]
[1769535711864,0.002588,87516.0,87499.0,0.01753788]
[1769535712059,0.011439,87514.0,87499.0,0.01753788]
[1769535712366,0.01144,87510.0,87499.0,0.01753788]
[1769535712660,0.014028,87509.0,87497.0,0.40432]
[1769535712859,0.002588,87509.0,87497.0,0.40432]
[1769535713258,0.014028,87509.0,87497.0,0.40432]
[1769535713458,0.114399,87521.0,87497.0,0.40432]
[1769535713459,0.10296,87521.0,87499.0,0.01675687]
[1769535713656,0.011439,87516.0,87499.0,0.01675687]
[1769535713859,0.00258838,87515.0,87499.0,0.01675687]
[1769535714054,0.10296,87525.0,87499.0,0.01675687]
[1769535714270,0.00258838,87524.0,87508.0,0.02535982]
[1769535714452,0.00258838,87524.0,87509.0,0.42967982]
[1769535714453,0.011438,87523.0,87509.0,0.42967982]
[1769535714751,0.00258838,87522.0,87509.0,0.30136]
[1769535714957,0.01144,87513.0,87499.0,0.03536054]
[1769535715156,0.00258838,87512.0,87500.0,0.40432]
[1769535715951,0.01144,87511.0,87500.0,0.40432]
[1769535716155,0.00258838,87510.0,87490.0,0.02535982]
[1769535716358,0.00258838,87510.0,87494.0,0.011442]
[1769535716557,0.00258838,87510.0,87496.0,0.011442]
[1769535716767,0.00258838,87510.0,87492.0,0.02535982]
[1769535716768,0.10296,87522.0,87492.0,0.02535982]
[1769535716968,0.00258838,87516.0,87492.0,0.02535982]
[1769535717171,0.00258838,87516.0,87498.0,0.02535982]
[1769535717358,0.00258838,87516.0,87499.0,0.03680082]
[1769535717756,0.00258838,87516.0,87500.0,0.011441]
[1769535718160,0.00258838,87516.0,87499.0,0.02535982]
[1769535718360,0.00258838,87516.0,87501.0,0.02535982]
[1769535718666,0.10296,87520.0,87502.0,0.0017256]
[1769535718866,0.00086262,87520.0,87503.0,0.02535982]
[1769535719062,0.00086262,87520.0,87506.0,0.01144]
[1769535719272,0.00086262,87520.0,87505.0,0.02535982]
[1769535719455,0.00086262,87520.0,87505.0,0.00258838]
[1769535719858,0.00086262,87520.0,87506.0,0.01144]
[1769535720060,0.00086262,87520.0,87507.0,0.00258838]
[1769535721371,0.10296,87535.0,87517.0,0.02535982]
[1769535721671,0.011437,87529.0,87510.0,0.02535982]
[1769535721875,0.02430339,87524.0,87504.0,0.10296]
[1769535722055,0.02430339,87524.0,87504.0,0.10554838]
[1769535722056,0.011438,87522.0,87504.0,0.10554838]
[1769535722256,0.02430339,87524.0,87511.0,0.01144]
[1769535722474,0.03574139,87524.0,87512.0,0.00258838]
[1769535722657,0.02430339,87524.0,87512.0,0.00258838]
[1769535722862,0.011438,87524.0,87512.0,0.00258838]
[1769535723058,0.011438,87524.0,87492.0,0.02535982]
[1769535723059,0.02430339,87519.0,87492.0,0.02535982]
[1769535723371,0.01144,87511.0,87492.0,0.00258838]
[1769535723572,0.01144,87508.0,87492.0,0.00258838]
[1769535723775,0.02430339,87512.0,87492.0,0.00258838]
[1769535724071,0.30136,87525.0,87492.0,0.00258838]
[1769535724072,0.02430339,87521.0,87492.0,0.00258838]
[1769535724275,0.02430339,87519.0,87492.0,0.00258838]
[1769535724476,0.011439,87515.0,87492.0,0.00258838]
[1769535724862,0.011439,87516.0,87492.0,0.00258838]
[1769535725557,0.11427853,87515.0,87492.0,0.0279482]
[1769535725970,0.10296,87514.0,87492.0,0.0279482]
[1769535726175,0.10296,87514.0,87492.0,0.0393902]
[1769535726476,0.10296,87513.0,87493.0,0.02535982]
[1769535726770,0.10296,87513.0,87495.0,0.02535982]
[1769535726974,0.10296,87513.0,87496.0,0.0279482]
[1769535727173,0.10296,87513.0,87496.0,0.00258838]
[1769535728061,0.01144,87512.0,87496.0,0.00258838]
[1769535728260,0.02430339,87512.0,87497.0,0.00258838]
[1769535728667,0.011437,87532.0,87506.0,0.02535982]
[1769535728875,0.42862339,87531.0,87507.0,0.0279482]
[1769535729071,0.03574139,87528.0,87507.0,0.0279482]
[1769535729271,0.02430339,87527.0,87498.0,0.02535982]
[1769535729571,0.02430339,87527.0,87500.0,0.02535982]
[1769535729777,0.10296,87526.0,87505.0,0.011441]
[1769535729975,0.10296,87526.0,87506.0,0.00258838]
[1769535730181,0.02430339,87525.0,87499.0,0.011441]
[1769535730366,0.02430339,87525.0,87502.0,0.00258838]
[1769535730774,0.10296,87524.0,87503.0,0.02535982]
[1769535730973,0.02430339,87526.0,87505.0,0.02535982]
[1769535731178,0.02430339,87522.0,87496.0,0.09054996]
[1769535731383,0.02430339,87514.0,87489.0,0.011443]
[1769535731571,0.02430339,87514.0,87486.0,0.09054996]
[1769535731572,0.02430339,87528.0,87496.0,0.02535982]
[1769535731769,0.02430339,87526.0,87497.0,0.0279482]
[1769535732081,0.11427396,87522.0,87500.0,0.02535982]
[1769535732273,0.40432,87521.0,87501.0,0.00258838]
[1769535732982,0.30136,87520.0,87501.0,0.00258838]
[1769535733167,0.32566339,87530.0,87505.0,0.02535982]
[1769535733371,0.10296,87523.0,87506.0,0.00258838]
[1769535733579,0.02430339,87522.0,87497.0,0.02535982]
[1769535733875,0.02430339,87522.0,87498.0,0.00258838]
[1769535734076,0.02430339,87519.0,87498.0,0.00258838]
[1769535734578,0.02430339,87516.0,87498.0,0.00258838]
[1769535735366,0.03574239,87516.0,87498.0,0.00258838]
[1769535735770,0.02430339,87516.0,87498.0,0.00258838]
[1769535735979,0.03574139,87523.0,87499.0,0.02535982]
[1769535736179,0.40432,87522.0,87500.0,0.0279482]
[1769535736378,0.02430339,87521.0,87500.0,0.0279482]
[1769535736980,0.02430339,87520.0,87500.0,0.0279482]
[1769535737282,0.02430339,87516.0,87500.0,0.00258838]
[1769535737881,0.02430339,87516.0,87486.0,0.02535982]
[1769535738087,0.011439,87515.0,87487.0,0.01403138]
[1769535738278,0.02430339,87512.0,87487.0,0.00258838]
[1769535738483,0.02430339,87510.0,87487.0,0.00258838]
[1769535738885,0.02430339,87510.0,87487.0,0.01403138]
[1769535739082,0.03574339,87510.0,87487.0,0.00258838]
[1769535739280,0.02430339,87509.0,87487.0,0.00258838]
[1769535740175,0.02430339,87507.0,87487.0,0.00258838]
[1769535740884,0.10296,87511.0,87487.0,0.0279482]
[1769535741183,0.06251511,87517.0,87500.0,0.02535982]
[1769535741184,0.10296,87513.0,87500.0,0.02535982]
[1769535741374,0.10296,87514.0,87501.0,0.00258838]
[1769535741576,0.12726339,87514.0,87492.0,0.02535982]
[1769535741883,0.02430339,87513.0,87493.0,0.00258838]
[1769535742081,0.02430339,87513.0,87485.0,0.10296]
[1769535742082,0.01144,87511.0,87485.0,0.10296]
[1769535742286,0.02430339,87510.0,87487.0,0.011443]
[1769535742473,0.02430339,87510.0,87488.0,0.00258838]
[1769535742671,0.02026433,87508.0,87488.0,0.00258838]
[1769535743084,0.11428767,87513.0,87489.0,0.02044622]
[1769535743288,0.02026433,87517.0,87495.0,0.02044622]
[1769535743289,0.40432,87512.0,87495.0,0.02044622]
[1769535743586,0.40432,87512.0,87496.0,0.00258838]
[1769535743982,0.06425093,87521.0,87499.0,0.011441]
[1769535744188,0.30136,87517.0,87502.0,0.02044622]
[1769535744388,0.01743774,87530.0,87504.0,0.011441]
[1769535744584,0.11428114,87523.0,87505.0,0.02116572]
[1769535744886,0.01743774,87528.0,87506.0,0.01144]
[1769535745085,0.01743774,87527.0,87507.0,0.00258838]
[1769535745274,0.01743774,87527.0,87508.0,0.00258838]
[1769535745688,0.01743774,87527.0,87497.0,0.01857734]
[1769535745891,0.01661826,87525.0,87498.0,0.00258838]
[1769535746276,0.01661826,87522.0,87498.0,0.00258838]
[1769535746578,0.01661826,87520.0,87498.0,0.00258838]
[1769535746790,0.01458734,87514.0,87498.0,0.00258838]
[1769535746985,0.11754734,87514.0,87498.0,0.00258838]
[1769535747888,0.10296,87514.0,87501.0,0.011441]
[1769535748091,0.10296,87514.0,87502.0,0.00258838]
[1769535748292,0.10296,87515.0,87506.0,0.01144]
[1769535748484,0.10296,87515.0,87496.0,0.10296]
[1769535748485,0.10296,87526.0,87507.0,0.02116572]
[1769535748791,0.30136,87538.0,87519.0,0.011439]
[1769535748988,0.10296,87537.0,87520.0,0.00258838]
[1769535749188,0.01246432,87542.0,87522.0,0.011438]
[1769535749489,0.10296,87536.0,87523.0,0.00258838]
[1769535749791,0.10296,87537.0,87516.0,0.011439]
[1769535749982,0.10296,87537.0,87517.0,0.00258838]
[1769535750184,0.10296,87537.0,87507.0,0.10296]
[1769535750185,0.01512317,87532.0,87505.0,0.10296]
[1769535750383,0.10296,87537.0,87506.0,0.00258838]
[1769535750384,0.01512317,87529.0,87506.0,0.00258838]
[1769535750601,0.01512317,87529.0,87509.0,0.01144]
[1769535750894,0.01311746,87537.0,87510.0,0.02116572]
[1769535751084,0.02455446,87532.0,87510.0,0.02116572]
[1769535751278,0.01311746,87532.0,87510.0,0.02116572]
[1769535751479,0.01311746,87540.0,87518.0,0.03001634]
[1769535751790,0.011433,87561.0,87510.0,0.00258838]
[1769535751791,0.10296,87539.0,87521.0,0.01857734]
[1769535751991,0.10296,87539.0,87522.0,0.00258838]
[1769535752194,0.01100059,87538.0,87522.0,0.00258838]
[1769535752695,0.01100059,87538.0,87514.0,0.011439]
[1769535752890,0.0088949,87535.0,87515.0,0.00258838]
[1769535753990,0.00679274,87534.0,87515.0,0.00258838]
[1769535754194,0.00679274,87526.0,87499.0,0.10296]
[1769535754495,0.00679274,87524.0,87501.0,0.00258838]
[1769535754683,0.00679274,87524.0,87508.0,0.01144]
[1769535754883,0.00679274,87524.0,87509.0,0.00258838]
[1769535755084,0.00561713,87534.0,87510.0,0.01144]
[1769535755398,0.11426939,87531.0,87511.0,0.00258838]
[1769535755697,0.10296,87530.0,87511.0,0.00258838]
[1769535755883,0.10296,87530.0,87511.0,0.02116572]
[1769535756191,0.11425698,87532.0,87511.0,0.02116572]
[1769535756396,0.30132,87538.0,87515.0,0.011439]
[1769535756397,0.10296,87531.0,87515.0,0.011439]
[1769535756592,0.10296,87531.0,87516.0,0.00258838]
[1769535756988,0.00145146,87530.0,87502.0,0.01857734]
[1769535757296,0.00145146,87528.0,87508.0,0.01144]
[1769535757497,0.00145146,87528.0,87509.0,0.00258838]
[1769535757687,0.10296,87531.0,87509.0,0.00258838]
[1769535757688,0.011438,87527.0,87509.0,0.00258838]
[1769535757994,0.011438,87527.0,87493.0,0.30136]
[1769535757995,0.011438,87521.0,87495.0,0.10296]
[1769535758198,0.011438,87521.0,87486.0,0.09148141]
[1769535758199,0.14884422,87510.0,87472.0,0.10296]
[1769535758391,0.14884422,87500.0,87461.0,0.09148141]
[1769535758693,0.01614978,87487.0,87473.0,0.01059089]
[1769535758895,0.011443,87485.0,87473.0,0.01059089]
[1769535759090,0.011443,87485.0,87473.0,0.00800251]
[1769535759399,0.10296,87486.0,87473.0,5.1e-07]
[1769535759592,0.10296,87486.0,87473.0,0.00258889]
[1769535759790,0.00257015,87509.0,87473.0,0.00258889]
[1769535759992,0.00257015,87497.0,87473.0,0.00258889]
[1769535760191,0.40428,87496.0,87473.0,0.00258889]
[1769535760392,0.00257015,87495.0,87473.0,0.00258889]
[1769535760593,0.11688264,87495.0,87473.0,0.00258889]
[1769535760889,0.011442,87493.0,87473.0,0.00258889]
[1769535761093,0.011443,87491.0,87473.0,0.00258889]
[1769535761296,0.40432,87494.0,87473.0,0.00258889]
[1769535761601,0.11430661,87493.0,87473.0,0.00258889]
[1769535761900,0.011441,87502.0,87473.0,0.00258889]
[1769535761901,0.10296,87492.0,87473.0,0.00258889]
[1769535762296,0.00258749,87491.0,87466.0,0.01143295]
[1769535762498,0.011444,87478.0,87466.0,0.01143295]
[1769535762687,0.00258749,87477.0,87466.0,0.01143295]
[1769535762997,0.10296,87476.0,87466.0,0.01143295]
[1769535763196,0.00258749,87475.0,87466.0,0.01143295]
[1769535763492,0.00258749,87475.0,87446.0,0.01143556]
[1769535763694,0.1143138,87474.0,87447.0,0.00097951]
[1769535763897,0.14884422,87470.0,87447.0,0.0001158]
[1769535764199,0.0026872,87469.0,87447.0,8e-07]
[1769535764402,0.011447,87457.0,87443.0,3.6e-07]
[1769535764589,0.011447,87457.0,87444.0,0.00086371]
[1769535764590,0.00258749,87456.0,87444.0,0.00086371]
[1769535764793,0.3014,87457.0,87444.0,0.00086371]
[1769535765095,0.011445,87468.0,87444.0,0.00086371]
[1769535765293,0.40708561,87467.0,87444.0,0.00086371]
[1769535765602,0.00268561,87467.0,87444.0,0.01231171]
[1769535766102,0.21734386,87466.0,87444.0,0.00086371]
[1769535766396,0.00258749,87465.0,87443.0,3.6e-07]
[1769535766598,0.011447,87460.0,87443.0,3.6e-07]
[1769535766793,0.00270329,87459.0,87443.0,0.00086407]
[1769535766996,0.11704911,87459.0,87443.0,3.6e-07]
[1769535767199,0.011448,87452.0,87443.0,3.6e-07]
[1769535767394,0.40702749,87451.0,87436.0,0.04141897]
[1769535767701,0.011447,87458.0,87437.0,0.00086371]
[1769535767702,0.00010658,87450.0,87437.0,0.00086371]
[1769535767909,0.00269407,87450.0,87437.0,0.00086371]
[1769535768200,0.00269407,87450.0,87429.0,0.01145]
[1769535768201,0.00269407,87450.0,87426.0,0.01143818]
[1769535768594,0.11435955,87449.0,87434.0,0.00086371]
[1769535768796,0.00258749,87448.0,87434.0,0.00086371]
[1769535769104,0.103,87447.0,87434.0,0.00086371]
[1769535769297,0.00258749,87446.0,87434.0,0.00086371]
[1769535769895,0.00010658,87450.0,87434.0,0.00086371]
[1769535770204,0.103,87449.0,87434.0,0.00086371]
[1769535770401,0.00258749,87448.0,87426.0,0.01143818]
[1769535771205,0.12581148,87447.0,87426.0,0.01143818]
[1769535771401,0.00258749,87446.0,87426.0,0.01143818]
[1769535771702,0.011448,87445.0,87426.0,0.01143818]
[1769535772002,0.00258749,87444.0,87426.0,0.01143818]
[1769535772700,0.11436478,87443.0,87433.0,0.00886989]
[1769535772892,0.30148,87448.0,87433.0,0.00886989]
[1769535773095,0.10558749,87447.0,87433.0,0.00800618]
[1769535773300,0.10562749,87447.0,87433.0,0.00800618]
[1769535773499,0.011449,87444.0,87433.0,0.00800618]
[1769535773807,0.011449,87442.0,87433.0,0.00800618]
[1769535774007,0.00270329,87441.0,87433.0,0.00800618]
[1769535774997,0.10304,87440.0,87433.0,0.00800618]
[1769535775304,0.00258749,87439.0,87433.0,0.00800618]
[1769535775608,0.10304,87440.0,87433.0,0.00886989]
[1769535775796,0.10562749,87440.0,87433.0,0.00800618]
[1769535775997,0.011444,87477.0,87434.0,0.01145]
[1769535776196,0.011446,87461.0,87435.0,0.01403838]
[1769535776391,0.011447,87459.0,87435.0,0.00258838]
[1769535776695,0.40456,87458.0,87435.0,0.00258838]
[1769535776896,0.51891498,87458.0,87433.0,0.00800618]
[1769535777096,0.011445,87471.0,87434.0,0.01418822]
[1769535777295,0.011445,87471.0,87433.0,0.01059456]
[1769535777296,0.011445,87472.0,87449.0,0.011448]
[1769535777494,0.11435498,87472.0,87450.0,0.00258838]
[1769535777801,0.10304,87473.0,87451.0,0.011448]
[1769535778001,0.11433732,87472.0,87436.0,0.0142101]
[1769535778202,0.11433732,87472.0,87448.0,0.011448]
[1769535778407,0.011445,87471.0,87449.0,0.00258838]
[1769535778806,0.10304,87473.0,87450.0,0.011448]
[1769535779003,0.11433798,87470.0,87451.0,0.00258838]
[1769535779303,0.40456,87469.0,87452.0,0.011447]
[1769535779512,0.10304,87468.0,87453.0,0.00258838]
[1769535780213,0.11433732,87467.0,87453.0,0.00258838]
[1769535780711,0.11433732,87467.0,87453.0,0.01403538]
[1769535781009,0.011446,87464.0,87435.0,0.11716378]
[1769535781203,0.21737732,87467.0,87440.0,0.00258838]
[1769535781511,0.011446,87463.0,87440.0,0.01403738]
[1769535781713,0.011446,87461.0,87440.0,0.00258838]
[1769535781912,0.11434648,87462.0,87434.0,0.01145]
[1769535782205,0.011446,87466.0,87436.0,0.01671216]
[1769535782517,0.011446,87462.0,87439.0,0.011449]
[1769535782713,0.011447,87458.0,87440.0,0.00258838]
[1769535783121,0.11434975,87461.0,87440.0,0.00258838]
[1769535783316,0.30152,87459.0,87440.0,0.01403738]
[1769535783615,0.10304,87458.0,87440.0,0.00258838]
[1769535783820,0.10304,87458.0,87443.0,0.011449]
[1769535784116,0.10304,87470.0,87446.0,0.01406745]
[1769535784317,0.01144,87511.0,87468.0,0.011445]
[1769535784610,0.11435171,87483.0,87469.0,0.00258838]
[1769535784815,0.0742798,87507.0,87423.0,0.09148141]
[1769535784816,0.011445,87474.0,87423.0,0.09148141]
[1769535784999,0.14884422,87468.0,87434.0,0.00086282]
[1769535785201,0.011446,87464.0,87434.0,0.00086282]
[1769535785406,0.011447,87459.0,87434.0,0.01483063]
[1769535785712,0.423644,87477.0,87434.0,0.01483063]
[1769535785713,0.011447,87456.0,87434.0,0.01483063]
[1769535786011,0.10304,87457.0,87434.0,0.01483063]
[1769535786214,0.00258838,87457.0,87434.0,0.01483063]
[1769535786711,0.00258838,87457.0,87435.0,0.01418448]
[1769535786902,0.011448,87452.0,87437.0,0.01418448]
[1769535787102,0.011449,87444.0,87431.0,0.10304]
[1769535787317,0.00258838,87443.0,87434.0,0.00086282]
[1769535787612,0.00163102,87455.0,87434.0,0.00086282]
[1769535787812,0.00258838,87454.0,87434.0,0.00086282]
[1769535788015,0.011447,87453.0,87431.0,0.10304]
[1769535788312,0.011449,87441.0,87431.0,0.10304]
[1769535788515,0.011447,87453.0,87431.0,0.10304]
[1769535788516,0.00258838,87440.0,87431.0,0.10304]
[1769535788808,0.01403738,87440.0,87431.0,0.10304]
[1769535789013,0.00258838,87439.0,87431.0,0.10304]
[1769535789216,0.10304,87450.0,87431.0,0.10304]
[1769535789409,0.011449,87440.0,87431.0,0.10304]
[1769535789602,0.01145,87436.0,87431.0,0.10304]
[1769535790002,0.00258838,87440.0,87431.0,0.10304]
[1769535790204,0.011449,87438.0,87431.0,0.10304]
[1769535790404,0.01145,87436.0,87431.0,0.10304]
[1769535790819,0.011447,87460.0,87436.0,0.01021889]
[1769535791010,0.00258838,87460.0,87441.0,0.01021889]
[1769535791314,0.011447,87459.0,87443.0,0.01021889]
[1769535791516,0.00086282,87458.0,87444.0,0.00258838]
[1769535791908,0.01230982,87458.0,87444.0,0.10562838]
[1769535792104,0.00086282,87458.0,87445.0,0.01021889]
[1769535792309,0.011446,87463.0,87447.0,0.01021889]
[1769535792615,0.00086282,87463.0,87448.0,0.00258838]
[1769535792816,0.011447,87460.0,87448.0,0.00258838]
[1769535793010,0.011447,87458.0,87448.0,0.00258838]
[1769535793318,0.01230982,87458.0,87448.0,0.00258838]
[1769535793711,0.011445,87470.0,87448.0,0.00258838]
[1769535794012,0.00086282,87469.0,87448.0,0.00258838]
[1769535794609,0.01149958,87469.0,87448.0,0.00258838]
[1769535794811,0.011447,87458.0,87448.0,0.00258838]
[1769535795017,0.01230982,87458.0,87448.0,0.00258838]
[1769535795216,0.00086282,87458.0,87448.0,0.00258838]
[1769535796210,0.011447,87460.0,87448.0,0.00258838]
[1769535796410,0.00086282,87460.0,87448.0,0.00258838]
[1769535796620,0.011446,87464.0,87448.0,0.00258838]
[1769535796818,0.00086282,87463.0,87448.0,0.00258838]
[1769535797011,0.011446,87461.0,87448.0,0.00258838]
[1769535797320,0.00086282,87461.0,87448.0,0.00258838]
[1769535799013,0.01063676,87469.0,87448.0,0.00258838]
[1769535799324,0.00086282,87468.0,87449.0,0.01021889]
[1769535799511,0.011445,87473.0,87456.0,0.01021889]
[1769535799710,0.011445,87471.0,87457.0,0.01280727]
[1769535799916,0.00086282,87471.0,87457.0,0.01280727]
[1769535800219,0.011445,87468.0,87457.0,0.01280727]
[1769535800520,0.011446,87461.0,87444.0,0.10304]
[1769535800816,0.00086282,87460.0,87445.0,0.00258838]
[1769535801118,0.01063676,87459.0,87435.0,0.09148141]
[1769535801321,0.14812607,87499.0,87435.0,0.00258838]
[1769535801322,0.011448,87450.0,87435.0,0.00258838]
[1769535801616,0.011448,87448.0,87435.0,0.00258838]
[1769535801816,0.00086282,87447.0,87435.0,0.00258838]
[1769535802713,0.011447,87453.0,87435.0,0.00258838]
[1769535803019,0.00086282,87452.0,87435.0,0.00258838]
[1769535803429,0.011448,87451.0,87435.0,0.00258838]
[1769535803717,0.00086282,87450.0,87435.0,0.00258838]
[1769535806509,0.00086282,87450.0,87429.0,0.01021889]
[1769535806510,0.01261412,87449.0,87433.0,0.09948759]
[1769535806713,0.00086282,87448.0,87433.0,0.01059456]
[1769535806916,0.011448,87447.0,87433.0,0.01059456]
[1769535807110,0.00086282,87446.0,87433.0,0.01059456]
[1769535807311,0.01261412,87479.0,87442.0,0.0128196]
[1769535807521,0.011446,87465.0,87444.0,0.0128196]
[1769535807719,0.10390282,87464.0,87445.0,0.00258838]
[1769535807912,0.10390282,87464.0,87445.0,0.01540798]
[1769535809322,0.11651694,87464.0,87445.0,0.00258838]
[1769535809714,0.00086282,87464.0,87445.0,0.01540798]
[1769535810025,0.01261412,87463.0,87427.0,0.13578299]
[1769535810225,0.01261412,87463.0,87409.0,0.13578299]
[1769535810226,0.00086282,87462.0,87409.0,0.13578299]
[1769535810424,0.01145,87434.0,87410.0,0.411453]
[1769535810726,0.011448,87451.0,87410.0,0.411453]
[1769535810727,0.01145,87432.0,87411.0,0.01713292]
[1769535810924,0.01145,87430.0,87411.0,0.01713292]
[1769535811117,0.01145,87433.0,87411.0,0.01713292]
[1769535811312,0.00086282,87432.0,87411.0,0.01713292]
[1769535811513,0.011451,87427.0,87411.0,0.00258838]
[1769535811729,0.01231382,87426.0,87411.0,0.00258838]
[1769535812322,0.00086282,87426.0,87411.0,0.00258838]
[1769535813031,0.00086282,87426.0,87413.0,0.011453]
[1769535813327,0.10304,87434.0,87414.0,0.0277566]
[1769535813525,0.11565412,87439.0,87419.0,0.011452]
[1769535813725,0.10304,87439.0,87420.0,0.00258838]
[1769535814025,0.011449,87443.0,87420.0,0.00258838]
[1769535814026,0.10304,87443.0,87423.0,0.01371157]
[1769535814329,0.10304,87447.0,87424.0,0.01629995]
[1769535814626,0.11437852,87449.0,87425.0,0.01393276]
[1769535814926,0.01261412,87455.0,87428.0,0.01393276]
[1769535815131,0.01261412,87455.0,87433.0,0.01145]
[1769535815132,0.10304,87454.0,87433.0,0.01145]
[1769535815324,0.10304,87454.0,87414.0,0.13578299]
[1769535815325,0.01261412,87462.0,87444.0,0.011449]
[1769535815522,0.011444,87482.0,87428.0,0.011451]
[1769535815523,0.10304,87464.0,87445.0,0.00258838]
[1769535815720,0.011446,87463.0,87445.0,0.00258838]
[1769535815927,0.011447,87459.0,87445.0,0.00258838]
[1769535816120,0.02406112,87459.0,87440.0,0.10304]
[1769535816430,0.01261412,87458.0,87440.0,0.10562838]
[1769535817320,0.011447,87457.0,87440.0,0.10562838]
[1769535817923,0.11435236,87463.0,87440.0,0.10562838]
[1769535817924,0.011446,87462.0,87440.0,0.10562838]
[1769535818132,0.02406012,87462.0,87440.0,0.10562838]
[1769535818330,0.02406012,87462.0,87442.0,0.011449]
[1769535818331,0.01261412,87462.0,87442.0,0.011449]
[1769535818633,0.01261412,87462.0,87443.0,0.00258838]
[1769535819019,0.01261412,87462.0,87444.0,0.011449]
[1769535819340,0.011446,87467.0,87448.0,0.01421459]
[1769535819523,0.011446,87467.0,87444.0,0.4]
[1769535819524,0.01261412,87467.0,87449.0,0.00258838]
[1769535819720,0.011446,87462.0,87441.0,0.011449]
[1769535819924,0.01261412,87466.0,87443.0,0.40258838]
[1769535820124,0.01261412,87465.0,87443.0,0.41403738]
[1769535820325,0.01261412,87457.0,87444.0,0.00258838]
[1769535820724,0.01261412,87457.0,87443.0,0.4]
[1769535820935,0.01261412,87457.0,87443.0,0.40258838]
[1769535822330,0.011446,87462.0,87443.0,0.40258838]
[1769535823239,0.01261412,87464.0,87443.0,0.40258838]
[1769535823534,0.01261412,87460.0,87443.0,0.40258838]
[1769535824931,0.011446,87461.0,87443.0,0.40258838]
[1769535825128,0.011446,87464.0,87443.0,0.40258838]
[1769535825935,0.11434909,87463.0,87444.0,0.01402539]
[1769535826126,0.11434909,87463.0,87445.0,0.01661377]
[1769535826329,0.00800251,87473.0,87457.0,0.01402539]
[1769535826521,0.10304,87489.0,87462.0,0.0128196]
[1769535826730,0.01261412,87494.0,87477.0,0.011444]
[1769535826938,0.011,87527.0,87478.0,0.01816746]
[1769535826939,0.10304,87497.0,87478.0,0.01816746]
[1769535827233,0.10304,87497.0,87489.0,0.011443]
[1769535827431,0.11431903,87506.0,87489.0,0.01403138]
[1769535827632,0.10304,87505.0,87491.0,0.011442]
[1769535827925,0.10304,87514.0,87492.0,0.00258838]
[1769535828125,0.10304,87514.0,87495.0,0.011442]
[1769535828338,0.10304,87514.0,87496.0,0.00258838]
[1769535828530,0.10304,87514.0,87490.0,0.4]
[1769535828729,0.01144,87512.0,87491.0,0.00258838]
[1769535828927,0.01261412,87511.0,87491.0,0.00258838]
[1769535829129,0.10304,87514.0,87491.0,0.00258838]
[1769535829130,0.01261412,87508.0,87491.0,0.00258838]
[1769535830242,0.01261412,87508.0,87490.0,0.4]
[1769535830243,0.011441,87500.0,87490.0,0.4]
[1769535830537,0.011441,87500.0,87448.0,0.14723099]
[1769535830538,0.01261412,87496.0,87472.0,0.40456]
[1769535830738,0.01261412,87496.0,87474.0,0.00258838]
[1769535830939,0.01261412,87496.0,87476.0,0.011444]
[1769535831151,0.10304,87502.0,87477.0,0.00258838]
[1769535831332,0.103,87508.0,87488.0,0.01438072]